[Event "*** Titled Tuesday Blitz"]
[Site "Chess.com"]
[Date "2020.05.26"]
[Round "10"]
[White "Turquoise_2701"]
[Black "DrBergerBerger"]
[Result "1/2-1/2"]
[WhiteElo "2192"]
[BlackElo "2356"]
[TimeControl "180+1"]
[EndTime "12:04:44 PDT"]
[Termination "Game drawn - insufficient material"]

1. Nf3 {[%clk 0:03:00.9]} 1... c5 {[%clk 0:02:58.1]} 2. c4 {[%clk 0:02:58.8]}
2... Nc6 {[%clk 0:02:56.4]} 3. g3 {[%clk 0:02:58.5]} 3... g6 {[%clk 0:02:56.1]}
4. Bg2 {[%clk 0:02:58.4]} 4... Bg7 {[%clk 0:02:56.3]} 5. O-O {[%clk 0:02:58.4]}
5... e6 {[%clk 0:02:56.6]} 6. Nc3 {[%clk 0:02:58.2]} 6... Nge7 {[%clk
0:02:56.6]} 7. d3 {[%clk 0:02:58]} 7... O-O {[%clk 0:02:56]} 8. Bg5 {[%clk
0:02:53]} 8... h6 {[%clk 0:02:54.7]} 9. Be3 {[%clk 0:02:53.6]} 9... b6 {[%clk
0:02:51.7]} 10. Qc1 {[%clk 0:02:54.1]} 10... Nf5 {[%clk 0:02:50.8]} 11. Bd2
{[%clk 0:02:52.9]} 11... Kh7 {[%clk 0:02:46]} 12. e3 {[%clk 0:02:50.2]} 12...
Bb7 {[%clk 0:02:31.3]} 13. a3 {[%clk 0:02:36]} 13... d5 {[%clk 0:02:02.1]} 14.
cxd5 {[%clk 0:02:30.2]} 14... exd5 {[%clk 0:01:42.7]} 15. Ne2 {[%clk 0:02:24.4]}
15... Rc8 {[%clk 0:01:33.8]} 16. Nf4 {[%clk 0:02:22.5]} 16... d4 {[%clk
0:01:19.1]} 17. e4 {[%clk 0:02:20.7]} 17... Nfe7 {[%clk 0:01:15.1]} 18. h4
{[%clk 0:02:19.4]} 18... Qd6 {[%clk 0:00:58.3]} 19. Nh2 {[%clk 0:02:07.5]} 19...
Ne5 {[%clk 0:00:56.3]} 20. Qb1 {[%clk 0:01:56.6]} 20... Ba6 {[%clk 0:00:52]} 21.
Rd1 {[%clk 0:01:52.3]} 21... f5 {[%clk 0:00:36.7]} 22. a4 {[%clk 0:01:42.9]}
22... Rce8 {[%clk 0:00:30.7]} 23. Ra3 {[%clk 0:01:37.7]} 23... Ng8 {[%clk
0:00:16.1]} 24. exf5 {[%clk 0:01:33]} 24... gxf5 {[%clk 0:00:17]} 25. Nh5 {[%clk
0:01:28.7]} 25... Nf6 {[%clk 0:00:16.6]} 26. Nxg7 {[%clk 0:01:25.8]} 26... Kxg7
{[%clk 0:00:17.5]} 27. Qc1 {[%clk 0:01:22.1]} 27... Neg4 {[%clk 0:00:16.1]} 28.
Bf4 {[%clk 0:01:20.2]} 28... Qe6 {[%clk 0:00:16]} 29. Nf3 {[%clk 0:01:17.4]}
29... Nd5 {[%clk 0:00:15.1]} 30. a5 {[%clk 0:01:05.1]} 30... Nxf4 {[%clk
0:00:13.5]} 31. Qxf4 {[%clk 0:01:04.7]} 31... b5 {[%clk 0:00:13.4]} 32. Raa1
{[%clk 0:01:02]} 32... b4 {[%clk 0:00:13]} 33. Qc7+ {[%clk 0:01:00.6]} 33... Qe7
{[%clk 0:00:12.4]} 34. Qc6 {[%clk 0:00:57.2]} 34... Bb7 {[%clk 0:00:12.1]} 35.
Qb5 {[%clk 0:00:51.5]} 35... a6 {[%clk 0:00:12.2]} 36. Qc4 {[%clk 0:00:51.1]}
36... Bxf3 {[%clk 0:00:12]} 37. Bxf3 {[%clk 0:00:49.4]} 37... Ne5 {[%clk
0:00:12.9]} 38. Qd5 {[%clk 0:00:49.9]} 38... Rd8 {[%clk 0:00:11.6]} 39. Qb7
{[%clk 0:00:49.6]} 39... Rd7 {[%clk 0:00:12]} 40. Qxa6 {[%clk 0:00:40.4]} 40...
Nxf3+ {[%clk 0:00:11.8]} 41. Kg2 {[%clk 0:00:41.1]} 41... Ne5 {[%clk 0:00:11.5]}
42. Re1 {[%clk 0:00:39.4]} 42... Re8 {[%clk 0:00:11.8]} 43. h5 {[%clk
0:00:37.7]} 43... Qd6 {[%clk 0:00:08]} 44. Qxd6 {[%clk 0:00:35.4]} 44... Rxd6
{[%clk 0:00:08.9]} 45. f4 {[%clk 0:00:35.8]} 45... Kf6 {[%clk 0:00:05.3]} 46.
fxe5+ {[%clk 0:00:35.5]} 46... Rxe5 {[%clk 0:00:06.2]} 47. Rxe5 {[%clk 0:00:35]}
47... Kxe5 {[%clk 0:00:07.1]} 48. a6 {[%clk 0:00:35.7]} 48... Rd8 {[%clk
0:00:07.6]} 49. Kf3 {[%clk 0:00:34.3]} 49... Ra8 {[%clk 0:00:07.8]} 50. a7
{[%clk 0:00:33.5]} 50... b3 {[%clk 0:00:08]} 51. Ra5 {[%clk 0:00:32.6]} 51...
Kd5 {[%clk 0:00:06.7]} 52. Kf4 {[%clk 0:00:32.4]} 52... Kc6 {[%clk 0:00:07.2]}
53. Kxf5 {[%clk 0:00:32.3]} 53... Kb6 {[%clk 0:00:07.7]} 54. Ra3 {[%clk
0:00:32.5]} 54... Rxa7 {[%clk 0:00:07.7]} 55. Rxb3+ {[%clk 0:00:33]} 55... Kc6
{[%clk 0:00:07.8]} 56. Kg6 {[%clk 0:00:33.5]} 56... Ra1 {[%clk 0:00:04.8]} 57.
Kxh6 {[%clk 0:00:29.6]} 57... Rg1 {[%clk 0:00:05.7]} 58. Kh7 {[%clk 0:00:26.1]}
58... Rxg3 {[%clk 0:00:05.7]} 59. h6 {[%clk 0:00:26.9]} 59... c4 {[%clk
0:00:06.1]} 60. Rb4 {[%clk 0:00:22.8]} 60... Rxd3 {[%clk 0:00:02.8]} 61. Rxc4+
{[%clk 0:00:22.9]} 61... Kd5 {[%clk 0:00:03.5]} 62. Rc8 {[%clk 0:00:23.4]} 62...
Rb3 {[%clk 0:00:02.9]} 63. Kg7 {[%clk 0:00:17.7]} 63... Rxb2 {[%clk 0:00:03.2]}
64. h7 {[%clk 0:00:17.1]} 64... Rb7+ {[%clk 0:00:03.8]} 65. Kg8 {[%clk
0:00:09.5]} 65... Rxh7 {[%clk 0:00:04.4]} 66. Kxh7 {[%clk 0:00:10.4]} 66... d3
{[%clk 0:00:03.5]} 67. Kg6 {[%clk 0:00:09.3]} 67... Ke4 {[%clk 0:00:03.7]} 68.
Re8+ {[%clk 0:00:08.1]} 68... Kf4 {[%clk 0:00:03.4]} 69. Rd8 {[%clk 0:00:04.3]}
69... Ke3 {[%clk 0:00:02.6]} 70. Kf5 {[%clk 0:00:04.5]} 70... d2 {[%clk
0:00:02.8]} 71. Re8+ {[%clk 0:00:04.9]} 71... Kf3 {[%clk 0:00:01.8]} 72. Rd8
{[%clk 0:00:04.8]} 72... Ke3 {[%clk 0:00:02]} 73. Kg4 {[%clk 0:00:04.2]} 73...
Ke2 {[%clk 0:00:02.1]} 74. Re8+ {[%clk 0:00:04.6]} 74... Kf2 {[%clk 0:00:02.6]}
75. Rd8 {[%clk 0:00:05]} 75... Ke2 {[%clk 0:00:03]} 76. Rxd2+ {[%clk 0:00:01.8]}
76... Kxd2 {[%clk 0:00:03.1]} 1/2-1/2

[Event "*** Titled Tuesday Blitz"]
[Site "Chess.com"]
[Date "2020.05.26"]
[Round "10"]
[White "SerGo055"]
[Black "Anton_Demchenko"]
[Result "0-1"]
[WhiteElo "2569"]
[BlackElo "2820"]
[TimeControl "180+1"]
[EndTime "12:04:48 PDT"]
[Termination "Anton_Demchenko won by resignation"]

1. d4 {[%clk 0:03:00.9]} 1... Nf6 {[%clk 0:02:59.9]} 2. Nf3 {[%clk 0:03:00.8]}
2... g6 {[%clk 0:02:59.1]} 3. c4 {[%clk 0:03:00.8]} 3... Bg7 {[%clk 0:02:59.1]}
4. Nc3 {[%clk 0:03:01.1]} 4... O-O {[%clk 0:02:59.4]} 5. Bg5 {[%clk 0:03:00.6]}
5... c5 {[%clk 0:02:50.3]} 6. d5 {[%clk 0:03:00.3]} 6... d6 {[%clk 0:02:50]} 7.
Qd2 {[%clk 0:02:59.8]} 7... Bf5 {[%clk 0:02:47.9]} 8. Bh6 {[%clk 0:02:59.1]}
8... Na6 {[%clk 0:02:14.9]} 9. h4 {[%clk 0:02:43.2]} 9... Bxh6 {[%clk
0:02:14.7]} 10. Qxh6 {[%clk 0:02:42.3]} 10... Ng4 {[%clk 0:02:15.4]} 11. Qd2
{[%clk 0:02:41.5]} 11... h5 {[%clk 0:02:15.9]} 12. e4 {[%clk 0:02:41]} 12... Bd7
{[%clk 0:02:16]} 13. Be2 {[%clk 0:02:35.7]} 13... Nc7 {[%clk 0:01:48.1]} 14. a4
{[%clk 0:02:21.8]} 14... e5 {[%clk 0:01:30.9]} 15. dxe6 {[%clk 0:02:17.8]} 15...
Nxe6 {[%clk 0:01:31.1]} 16. Qxd6 {[%clk 0:02:11.2]} 16... Bc6 {[%clk 0:01:30.1]}
17. Qxd8 {[%clk 0:02:08.7]} 17... Raxd8 {[%clk 0:01:31]} 18. Nd5 {[%clk
0:02:04.6]} 18... Bxd5 {[%clk 0:01:05.2]} 19. exd5 {[%clk 0:01:44.4]} 19... Nf4
{[%clk 0:01:05.5]} 20. g3 {[%clk 0:01:44.3]} 20... Nxe2 {[%clk 0:00:55.6]} 21.
Kxe2 {[%clk 0:01:44.1]} 21... Rfe8+ {[%clk 0:00:55.8]} 22. Kf1 {[%clk
0:01:43.8]} 22... Rd6 {[%clk 0:00:32.7]} 23. Nd2 {[%clk 0:00:59.7]} 23... Rf6
{[%clk 0:00:27.2]} 24. f3 {[%clk 0:00:46]} 24... Ne5 {[%clk 0:00:07.4]} 25. Re1
{[%clk 0:00:38.3]} 25... Kf8 {[%clk 0:00:07.7]} 26. f4 {[%clk 0:00:22.2]} 26...
Ng4 {[%clk 0:00:07.6]} 27. Rxe8+ {[%clk 0:00:21.2]} 27... Kxe8 {[%clk
0:00:08.5]} 28. Ke2 {[%clk 0:00:21.4]} 28... Rb6 {[%clk 0:00:07.8]} 29. b3
{[%clk 0:00:20.4]} 29... f5 {[%clk 0:00:06.2]} 30. Re1 {[%clk 0:00:20.3]} 30...
Kd7 {[%clk 0:00:06.3]} 31. Kd3 {[%clk 0:00:20.5]} 31... a6 {[%clk 0:00:04.6]}
32. Kc3 {[%clk 0:00:20.5]} 32... Rf6 {[%clk 0:00:04.4]} 33. Nf3 {[%clk
0:00:20.5]} 33... Kc7 {[%clk 0:00:03.4]} 34. Re7+ {[%clk 0:00:19.6]} 34... Kc8
{[%clk 0:00:03.4]} 35. Ne5 {[%clk 0:00:19.2]} 35... Nf2 {[%clk 0:00:03.2]} 36.
d6 {[%clk 0:00:14.7]} 36... Rxd6 {[%clk 0:00:02.4]} 37. Re8+ {[%clk 0:00:09.3]}
37... Kc7 {[%clk 0:00:02.2]} 38. Re7+ {[%clk 0:00:09.6]} 38... Kc8 {[%clk
0:00:02.3]} 39. Rg7 {[%clk 0:00:09.2]} 39... Ne4+ {[%clk 0:00:02]} 40. Kc2
{[%clk 0:00:08.2]} 40... Rd2+ {[%clk 0:00:02.9]} 41. Kc1 {[%clk 0:00:08.5]}
41... Rg2 {[%clk 0:00:03.5]} 42. Rxg6 {[%clk 0:00:08.3]} 42... Rxg3 {[%clk
0:00:02.7]} 43. Rxg3 {[%clk 0:00:06.5]} 43... Nxg3 {[%clk 0:00:03.6]} 44. Kd2
{[%clk 0:00:05.7]} 44... Ne4+ {[%clk 0:00:03.7]} 45. Ke3 {[%clk 0:00:05.3]}
45... Kc7 {[%clk 0:00:03.8]} 46. Nf7 {[%clk 0:00:02.9]} 46... b6 {[%clk
0:00:03.4]} 47. Ng5 {[%clk 0:00:03.3]} 47... Nf6 {[%clk 0:00:03]} 48. Nf3 {[%clk
0:00:02.9]} 48... Ng4+ {[%clk 0:00:02.6]} 49. Ke2 {[%clk 0:00:02.9]} 49... Kd6
{[%clk 0:00:03.5]} 50. Ng5 {[%clk 0:00:02.9]} 50... Nf6 {[%clk 0:00:03.2]} 51.
Kf3 {[%clk 0:00:03.4]} 51... Kc6 {[%clk 0:00:01.5]} 52. Ke2 {[%clk 0:00:03.7]}
52... Kd6 {[%clk 0:00:02]} 53. Ke3 {[%clk 0:00:03.9]} 53... Ng4+ {[%clk
0:00:02.6]} 54. Kf3 {[%clk 0:00:04.1]} 54... Ke7 {[%clk 0:00:03.5]} 55. Kg3
{[%clk 0:00:03.9]} 55... Kf6 {[%clk 0:00:03.9]} 56. Nf3 {[%clk 0:00:04.4]} 56...
Ne3 {[%clk 0:00:04]} 57. Kf2 {[%clk 0:00:04.9]} 57... Nc2 {[%clk 0:00:04]} 58.
Nd2 {[%clk 0:00:05.2]} 58... Nd4 {[%clk 0:00:03.9]} 59. Ke3 {[%clk 0:00:05.5]}
59... Ke6 {[%clk 0:00:04]} 60. Kd3 {[%clk 0:00:06]} 60... Kd6 {[%clk 0:00:04.1]}
61. b4 {[%clk 0:00:06.1]} 61... Ne6 {[%clk 0:00:04.1]} 62. b5 {[%clk 0:00:06.4]}
62... axb5 {[%clk 0:00:04.2]} 63. cxb5 {[%clk 0:00:05.8]} 63... Nxf4+ {[%clk
0:00:04.9]} 64. Ke3 {[%clk 0:00:06.4]} 64... Ne6 {[%clk 0:00:04.8]} 65. Nc4+
{[%clk 0:00:06.3]} 65... Kc7 {[%clk 0:00:05.6]} 66. Kf3 {[%clk 0:00:06.6]} 66...
Kb7 {[%clk 0:00:05]} 67. Ke3 {[%clk 0:00:07]} 67... Kc7 {[%clk 0:00:05.4]} 68.
Kf3 {[%clk 0:00:07.2]} 68... Nd4+ {[%clk 0:00:04.4]} 69. Kf4 {[%clk 0:00:07.2]}
69... Ne2+ {[%clk 0:00:04.8]} 70. Kxf5 {[%clk 0:00:07.6]} 70... Nc3 {[%clk
0:00:05.5]} 71. Nb2 {[%clk 0:00:07.4]} 71... Nd5 {[%clk 0:00:04.8]} 72. Kg5
{[%clk 0:00:07.6]} 72... Ne3 {[%clk 0:00:05.4]} 73. Kxh5 {[%clk 0:00:07.8]}
73... c4 {[%clk 0:00:06.3]} 74. Kg5 {[%clk 0:00:07.2]} 74... c3 {[%clk
0:00:06.4]} 75. Nd3 {[%clk 0:00:07.9]} 75... c2 {[%clk 0:00:06.5]} 76. h5 {[%clk
0:00:08.3]} 76... Nc4 {[%clk 0:00:05.8]} 77. h6 {[%clk 0:00:08]} 77... Ne5
{[%clk 0:00:06.1]} 78. Kf6 {[%clk 0:00:07.9]} 78... Nxd3 {[%clk 0:00:06]} 79. h7
{[%clk 0:00:08]} 79... c1=Q {[%clk 0:00:06.6]} 80. h8=Q {[%clk 0:00:08.1]} 80...
Qc3+ {[%clk 0:00:07.3]} 0-1

[Event "*** Titled Tuesday Blitz"]
[Site "Chess.com"]
[Date "2020.05.26"]
[Round "10"]
[White "Korchmar_Vasiliy"]
[Black "VMikhalevski"]
[Result "1-0"]
[WhiteElo "2599"]
[BlackElo "2736"]
[TimeControl "180+1"]
[EndTime "12:04:51 PDT"]
[Termination "Korchmar_Vasiliy won by resignation"]

1. d4 {[%clk 0:03:00.9]} 1... Nf6 {[%clk 0:03:00]} 2. c4 {[%clk 0:03:00.7]} 2...
g6 {[%clk 0:03:00.3]} 3. Nc3 {[%clk 0:03:00.2]} 3... d5 {[%clk 0:03:01]} 4. Nf3
{[%clk 0:03:00.3]} 4... Bg7 {[%clk 0:03:00.7]} 5. Bf4 {[%clk 0:03:00.9]} 5...
O-O {[%clk 0:03:00.1]} 6. e3 {[%clk 0:03:01.2]} 6... c5 {[%clk 0:02:58.6]} 7.
dxc5 {[%clk 0:03:02.1]} 7... Ne4 {[%clk 0:02:55.3]} 8. Rc1 {[%clk 0:03:01]} 8...
Nxc3 {[%clk 0:02:54.7]} 9. bxc3 {[%clk 0:03:01.9]} 9... dxc4 {[%clk 0:02:52]}
10. Qxd8 {[%clk 0:02:51.5]} 10... Rxd8 {[%clk 0:02:51.2]} 11. Bxc4 {[%clk
0:02:52.4]} 11... Nd7 {[%clk 0:02:40.1]} 12. Ng5 {[%clk 0:02:08.7]} 12... Rf8
{[%clk 0:02:37.8]} 13. Ne4 {[%clk 0:02:06.8]} 13... b6 {[%clk 0:02:27.8]} 14.
Bd5 {[%clk 0:01:58.8]} 14... Ba6 {[%clk 0:02:27.6]} 15. Bxa8 {[%clk 0:01:56.5]}
15... Rxa8 {[%clk 0:02:28.3]} 16. c6 {[%clk 0:01:48.3]} 16... Ne5 {[%clk
0:02:27]} 17. Bxe5 {[%clk 0:01:41.7]} 17... Bxe5 {[%clk 0:02:26.5]} 18. f4
{[%clk 0:01:40.3]} 18... Bg7 {[%clk 0:02:23.9]} 19. Kf2 {[%clk 0:01:32.6]} 19...
Rc8 {[%clk 0:02:20.8]} 20. Rhd1 {[%clk 0:01:33.1]} 20... Bf8 {[%clk 0:02:18.4]}
21. Rd7 {[%clk 0:01:21.6]} 21... Rxc6 {[%clk 0:02:15.7]} 22. Rxa7 {[%clk
0:01:22]} 22... Bd3 {[%clk 0:02:15.3]} 23. Ng5 {[%clk 0:01:10.1]} 23... f6
{[%clk 0:02:02.8]} 24. Nf3 {[%clk 0:01:07.3]} 24... Bc4 {[%clk 0:01:58.3]} 25.
Rd1 {[%clk 0:00:55.2]} 25... Rc8 {[%clk 0:01:54.8]} 26. Rdd7 {[%clk 0:00:50.9]}
26... Kf7 {[%clk 0:01:52.8]} 27. Rdc7 {[%clk 0:00:40.1]} 27... Rxc7 {[%clk
0:01:47.7]} 28. Rxc7 {[%clk 0:00:41]} 28... Bxa2 {[%clk 0:01:43.1]} 29. Rb7
{[%clk 0:00:41.1]} 29... h6 {[%clk 0:01:35.8]} 30. Rxb6 {[%clk 0:00:41.1]} 30...
g5 {[%clk 0:01:36]} 31. g3 {[%clk 0:00:41.1]} 31... e6 {[%clk 0:01:32.8]} 32.
Rc6 {[%clk 0:00:29.8]} 32... Bd5 {[%clk 0:01:25.9]} 33. Rc7+ {[%clk 0:00:30]}
33... Kg6 {[%clk 0:01:23]} 34. c4 {[%clk 0:00:30.9]} 34... Be4 {[%clk
0:01:19.8]} 35. c5 {[%clk 0:00:26.6]} 35... gxf4 {[%clk 0:01:15]} 36. exf4
{[%clk 0:00:23]} 36... Bd5 {[%clk 0:01:12.3]} 37. g4 {[%clk 0:00:13.6]} 37... h5
{[%clk 0:01:09.9]} 38. h3 {[%clk 0:00:14]} 38... hxg4 {[%clk 0:01:09.5]} 39.
hxg4 {[%clk 0:00:14.9]} 39... Bh6 {[%clk 0:01:07.5]} 40. Kg3 {[%clk 0:00:14.7]}
40... Bf8 {[%clk 0:01:06.4]} 41. Rc8 {[%clk 0:00:06.6]} 41... Kf7 {[%clk
0:01:03.3]} 42. Rc7+ {[%clk 0:00:06.2]} 42... Ke8 {[%clk 0:01:02.5]} 43. Rc8+
{[%clk 0:00:02.1]} 43... Kf7 {[%clk 0:01:02]} 44. Kf2 {[%clk 0:00:01.9]} 44...
Be7 {[%clk 0:01:00.3]} 45. Rc7 {[%clk 0:00:02.2]} 45... Ke8 {[%clk 0:00:59.7]}
46. Rc8+ {[%clk 0:00:02]} 46... Kd7 {[%clk 0:00:59.7]} 47. Rh8 {[%clk
0:00:01.7]} 47... Bxc5+ {[%clk 0:00:59.5]} 48. Kg3 {[%clk 0:00:02.6]} 48... Bd6
{[%clk 0:00:57]} 49. Rh7+ {[%clk 0:00:03]} 49... Ke8 {[%clk 0:00:56.3]} 50. Rh8+
{[%clk 0:00:02.8]} 50... Kf7 {[%clk 0:00:56.3]} 51. Rh7+ {[%clk 0:00:03.7]}
51... Kg8 {[%clk 0:00:54.6]} 52. Rd7 {[%clk 0:00:03.8]} 52... Bb4 {[%clk
0:00:48.7]} 53. Rc7 {[%clk 0:00:03.6]} 53... Kf8 {[%clk 0:00:46.6]} 54. Ra7
{[%clk 0:00:03.4]} 54... Bc5 {[%clk 0:00:45.5]} 55. Rc7 {[%clk 0:00:03.3]} 55...
Bd6 {[%clk 0:00:45]} 56. Rh7 {[%clk 0:00:03.1]} 56... Be7 {[%clk 0:00:44]} 57.
Rh8+ {[%clk 0:00:02.9]} 57... Kg7 {[%clk 0:00:43.7]} 58. Rh1 {[%clk 0:00:03.5]}
58... Bd6 {[%clk 0:00:41.4]} 59. Rd1 {[%clk 0:00:03.2]} 59... Bc5 {[%clk
0:00:40.4]} 60. Rd2 {[%clk 0:00:03.1]} 60... Bb4 {[%clk 0:00:39.7]} 61. Rd3
{[%clk 0:00:03.2]} 61... Kf7 {[%clk 0:00:38.8]} 62. Rd4 {[%clk 0:00:02.8]} 62...
Bc3 {[%clk 0:00:38.2]} 63. Ra4 {[%clk 0:00:02.7]} 63... Ke7 {[%clk 0:00:36.5]}
64. Ra7+ {[%clk 0:00:02.8]} 64... Kd6 {[%clk 0:00:35.4]} 65. Ra6+ {[%clk
0:00:03.7]} 65... Ke7 {[%clk 0:00:34.1]} 66. Ra3 {[%clk 0:00:04.6]} 66... Bb2
{[%clk 0:00:32.5]} 67. Ra7+ {[%clk 0:00:04.9]} 67... Kd6 {[%clk 0:00:32.2]} 68.
Rh7 {[%clk 0:00:05.3]} 68... Be4 {[%clk 0:00:31.1]} 69. Ra7 {[%clk 0:00:04.2]}
69... Bc3 {[%clk 0:00:30.1]} 70. Ra6+ {[%clk 0:00:04.4]} 70... Kd5 {[%clk
0:00:28.8]} 71. Ra3 {[%clk 0:00:05.3]} 71... Bb2 {[%clk 0:00:27.1]} 72. Ra5+
{[%clk 0:00:05.3]} 72... Kd6 {[%clk 0:00:23.7]} 73. Ra6+ {[%clk 0:00:05]} 73...
Kd5 {[%clk 0:00:23.3]} 74. g5 {[%clk 0:00:04.3]} 74... fxg5 {[%clk 0:00:21]} 75.
fxg5 {[%clk 0:00:05.2]} 75... Bc1 {[%clk 0:00:15.2]} 76. Nh4 {[%clk 0:00:03.5]}
76... Bxg5 {[%clk 0:00:14.1]} 77. Ra5+ {[%clk 0:00:03.1]} 77... Kd4 {[%clk
0:00:13.7]} 78. Rxg5 {[%clk 0:00:04]} 78... e5 {[%clk 0:00:12.7]} 79. Ng6 {[%clk
0:00:04]} 1-0

[Event "*** Titled Tuesday Blitz"]
[Site "Chess.com"]
[Date "2020.05.26"]
[Round "10"]
[White "tteshan"]
[Black "rynos0411"]
[Result "0-1"]
[WhiteElo "2201"]
[BlackElo "2367"]
[TimeControl "180+1"]
[EndTime "12:05:00 PDT"]
[Termination "rynos0411 won by resignation"]

1. e4 {[%clk 0:03:00.9]} 1... c6 {[%clk 0:02:59.8]} 2. d4 {[%clk 0:03:00.4]}
2... d5 {[%clk 0:03:00.2]} 3. Nc3 {[%clk 0:03:00.9]} 3... dxe4 {[%clk
0:02:59.9]} 4. Nxe4 {[%clk 0:03:01.8]} 4... Nf6 {[%clk 0:03:00.4]} 5. Nxf6+
{[%clk 0:03:01.3]} 5... exf6 {[%clk 0:03:01.3]} 6. c3 {[%clk 0:03:01.4]} 6...
Be6 {[%clk 0:03:01.7]} 7. Bd3 {[%clk 0:03:01.4]} 7... Bd6 {[%clk 0:03:02.1]} 8.
Ne2 {[%clk 0:03:01.2]} 8... Qc7 {[%clk 0:03:01.7]} 9. h3 {[%clk 0:02:54.3]} 9...
Nd7 {[%clk 0:02:58.3]} 10. O-O {[%clk 0:02:54.4]} 10... O-O {[%clk 0:02:54.8]}
11. Be3 {[%clk 0:02:53.5]} 11... c5 {[%clk 0:02:53.7]} 12. Qc2 {[%clk
0:02:46.1]} 12... h5 {[%clk 0:02:52.1]} 13. Rad1 {[%clk 0:02:42.4]} 13... cxd4
{[%clk 0:02:50.1]} 14. Nxd4 {[%clk 0:02:41.1]} 14... Nc5 {[%clk 0:02:45.1]} 15.
Bh7+ {[%clk 0:02:37.2]} 15... Kh8 {[%clk 0:02:44.2]} 16. Nb5 {[%clk 0:02:35.1]}
16... Bh2+ {[%clk 0:02:38.6]} 17. Kh1 {[%clk 0:02:35.1]} 17... Qb6 {[%clk
0:02:27.1]} 18. b4 {[%clk 0:02:23.6]} 18... Qxb5 {[%clk 0:02:26.7]} 19. Bxc5
{[%clk 0:02:21.6]} 19... Bc7 {[%clk 0:02:04.4]} 20. Bxf8 {[%clk 0:02:19.9]}
20... Rxf8 {[%clk 0:02:04.1]} 21. Bd3 {[%clk 0:02:18.9]} 21... Qc6 {[%clk
0:01:59.5]} 22. Rfe1 {[%clk 0:02:09.1]} 22... Be5 {[%clk 0:01:53.4]} 23. Be4
{[%clk 0:01:56.4]} 23... Qxc3 {[%clk 0:01:30.7]} 24. Qxc3 {[%clk 0:01:51.8]}
24... Bxc3 {[%clk 0:01:31.6]} 25. Re3 {[%clk 0:01:49.9]} 25... Bxb4 {[%clk
0:01:26.7]} 26. a3 {[%clk 0:01:41.9]} 26... Bc5 {[%clk 0:01:26.3]} 27. Rc3
{[%clk 0:01:41.4]} 27... b6 {[%clk 0:01:22.2]} 28. Kg1 {[%clk 0:01:32]} 28...
Re8 {[%clk 0:01:21]} 29. Bf3 {[%clk 0:01:29]} 29... g6 {[%clk 0:01:19.2]} 30.
Kf1 {[%clk 0:01:27.3]} 30... Kg7 {[%clk 0:01:16.8]} 31. a4 {[%clk 0:01:21.8]}
31... a5 {[%clk 0:01:07.6]} 32. Bc6 {[%clk 0:01:20.8]} 32... Rc8 {[%clk
0:01:05.4]} 33. Bd7 {[%clk 0:01:18.1]} 33... Rd8 {[%clk 0:01:04.6]} 34. Rcd3
{[%clk 0:00:56.7]} 34... Bc4 {[%clk 0:01:00.8]} 35. Bb5 {[%clk 0:00:57]} 35...
Bxd3+ {[%clk 0:00:58.7]} 36. Rxd3 {[%clk 0:00:57]} 36... Rc8 {[%clk 0:00:22.1]}
37. Rd7 {[%clk 0:00:47.6]} 37... Bb4 {[%clk 0:00:22.4]} 38. g3 {[%clk
0:00:42.7]} 38... Rc1+ {[%clk 0:00:21.8]} 39. Ke2 {[%clk 0:00:40.7]} 39... Rc2+
{[%clk 0:00:21.6]} 40. Kf3 {[%clk 0:00:38.1]} 40... Bc5 {[%clk 0:00:21.9]} 41.
Rc7 {[%clk 0:00:27.5]} 41... Rxf2+ {[%clk 0:00:20.9]} 42. Ke4 {[%clk 0:00:27.4]}
42... f5+ {[%clk 0:00:18.4]} 43. Ke5 {[%clk 0:00:22.9]} 43... Rd2 {[%clk
0:00:18.4]} 44. Rd7 {[%clk 0:00:18.2]} 44... Rxd7 {[%clk 0:00:06]} 45. Bxd7
{[%clk 0:00:19.1]} 45... Bf2 {[%clk 0:00:06.5]} 46. g4 {[%clk 0:00:18.2]} 46...
fxg4 {[%clk 0:00:06.9]} 47. hxg4 {[%clk 0:00:18.5]} 47... h4 {[%clk 0:00:07.8]}
48. Kf4 {[%clk 0:00:17.8]} 48... Kf6 {[%clk 0:00:07.8]} 49. Bb5 {[%clk
0:00:16.6]} 49... Bg3+ {[%clk 0:00:06.1]} 50. Kf3 {[%clk 0:00:16.5]} 50... Kg5
{[%clk 0:00:06.5]} 51. Be8 {[%clk 0:00:16.5]} 51... f5 {[%clk 0:00:06.9]} 52.
gxf5 {[%clk 0:00:16.4]} 52... Kxf5 {[%clk 0:00:05.8]} 53. Bc6 {[%clk 0:00:16.7]}
53... g5 {[%clk 0:00:06.1]} 54. Bd7+ {[%clk 0:00:17]} 54... Ke5 {[%clk 0:00:06]}
55. Bh3 {[%clk 0:00:17.9]} 55... Kd4 {[%clk 0:00:06.1]} 56. Bg4 {[%clk
0:00:17.8]} 56... Kc4 {[%clk 0:00:06.2]} 57. Bd7 {[%clk 0:00:15.7]} 57... Bf4
{[%clk 0:00:05.2]} 58. Kg4 {[%clk 0:00:15.7]} 58... Kd3 {[%clk 0:00:05.1]} 59.
Bb5+ {[%clk 0:00:16]} 59... Ke3 {[%clk 0:00:05.2]} 60. Bd7 {[%clk 0:00:15]}
60... Kf2 {[%clk 0:00:05]} 61. Kh3 {[%clk 0:00:15.3]} 61... Kf3 {[%clk
0:00:04.5]} 62. Be6 {[%clk 0:00:15.6]} 62... b5 {[%clk 0:00:02.6]} 63. axb5
{[%clk 0:00:15.1]} 63... a4 {[%clk 0:00:03.2]} 64. b6 {[%clk 0:00:12.5]} 64...
a3 {[%clk 0:00:03.3]} 65. Bd5+ {[%clk 0:00:12.9]} 65... Kf2 {[%clk 0:00:03.3]}
66. b7 {[%clk 0:00:13]} 66... Ke3 {[%clk 0:00:01.8]} 67. Kg4 {[%clk 0:00:12.9]}
67... Kd4 {[%clk 0:00:02.1]} 68. Ba2 {[%clk 0:00:12.7]} 68... Ke3 {[%clk
0:00:02.3]} 69. Bd5 {[%clk 0:00:08.2]} 69... Kd2 {[%clk 0:00:02.4]} 70. b8=Q
{[%clk 0:00:06.5]} 70... Bxb8 {[%clk 0:00:02]} 71. Kxg5 {[%clk 0:00:06.7]} 71...
h3 {[%clk 0:00:02.5]} 72. Kg4 {[%clk 0:00:06.8]} 72... h2 {[%clk 0:00:01.9]} 73.
Kh3 {[%clk 0:00:07]} 73... a2 {[%clk 0:00:02.4]} 74. Bxa2 {[%clk 0:00:04.6]}
74... h1=Q+ {[%clk 0:00:02.8]} 75. Kg4 {[%clk 0:00:05.3]} 75... Qe1 {[%clk
0:00:03.2]} 76. Be6 {[%clk 0:00:06.2]} 76... Ke3 {[%clk 0:00:03.5]} 77. Kf5
{[%clk 0:00:05.5]} 77... Qf2+ {[%clk 0:00:04.4]} 78. Kg6 {[%clk 0:00:05.3]}
78... Kd4 {[%clk 0:00:05.3]} 79. Bf7 {[%clk 0:00:04.9]} 79... Ke5 {[%clk
0:00:06.2]} 80. Bg8 {[%clk 0:00:05.4]} 80... Qf6+ {[%clk 0:00:06]} 81. Kh7
{[%clk 0:00:05]} 81... Qg5 {[%clk 0:00:05.7]} 82. Be6 {[%clk 0:00:04.4]} 82...
Kf6 {[%clk 0:00:05.8]} 0-1